Cogmind - Beta 13 @@@ ROGUE MODE // 2024.04.19 @ 07:56:26 Player: Muchitsuji Result: Self-destructed Performance ------------- Evolutions (1) 500 Regions Visited (2) 400 Robots Destroyed (26) 130 Value Destroyed (481) 481 Prototype IDs (2) 40 Alien Tech Used (0) 0 Bonus (0) 0 TOTAL SCORE: 1551 Bonus ------- None Cogmind --------- Core Integrity 309/400 Matter 221/300 Energy 3/100 System Corruption 0% Temperature Cool (0) Movement Rolling (100) Location -9/Materials Parts ------- > --- POWER (1) -------- (None) > --- PROPULSION (3) --- Compact Wheel > --- UTILITY (3) ------ Small Storage Unit Targeting Computer ECM Suite > --- WEAPON (2) ------- Improved Medium Laser Light EM Pulse Cannon > --- INVENTORY (8) ---- Aluminum Leg Improved Aluminum Leg Improved Medium Laser Peak State ------------ > --- POWER ------------ Light Ion Engine > --- PROPULSION ------- Wheel Wheel Compact Wheel > --- UTILITY ---------- Small Storage Unit ECM Suite Light Armor Plating > --- WEAPON ----------- Improved Medium Laser Assault Rifle > --- INVENTORY -------- Light Ion Engine Aluminum Leg Aluminum Leg Compact Wheel Targeting Computer Medium Laser Improved Medium Laser Light Assault Rifle [Rating: 12] Favorites ----------- Power Light Ion Engine Engine Light Ion Engine Propulsion Wheel Leg Aluminum Leg Wheel Wheel Utility Small Storage Unit Device ECM Suite Storage Small Storage Unit Processor Targeting Computer Protection Light Armor Plating Weapon Medium Laser Energy Gun Medium Laser Energy Cannon Light EM Pulse Cannon Ballistic Gun Assault Rifle Launcher Mini Grenade Launcher Build | -11 -10 -9 ------- Run | Yrd Mat Mat Slots Evolved 2 | . . 2 Power . | . . . Propulsion 1 | . . 1 Utility 1 | . . 1 Weapon . | . . . Parts Attached 38 | 9 15 14 Power 3 | 1 1 1 Engine 3 | 1 1 1 Core . | . . . Reactor . | . . . Propulsion 13 | 4 4 5 Treads . | . . . Leg 2 | 2 . . Wheel 11 | 2 4 5 Hover . | . . . Flight . | . . . Utility 10 | 1 7 2 Device 3 | . 3 . Storage 1 | 1 . . Processor 1 | . . 1 Hackware . | . . . Protection 5 | . 4 1 Artifact . | . . . Weapon 12 | 3 3 6 Energy Gun 5 | 2 2 1 Energy Cannon 1 | . . 1 Ballistic Gun 4 | 1 1 2 Ballistic Cannon . | . . . Launcher 2 | . . 2 Special Weapon . | . . . Impact Weapon . | . . . Slashing Weapon . | . . . Piercing Weapon . | . . . Special Melee Weapon . | . . . Unidentified Prototypes . | . . . Parts Lost 14 | . 5 9 Power 3 | . 1 2 Propulsion 5 | . 2 3 Utility 2 | . 1 1 Weapon 4 | . 1 3 Highest Loss Streak 5 | . 5 5 To Critical Strikes . | . . . Average Slot Usage (%) 96 | . 98 94 Engine 12 | . 13 10 Wheel 28 | . 27 31 Device 8 | . 7 11 Storage 12 | . 14 11 Protection 6 | . 6 7 Energy Gun 12 | . 13 11 Ballistic Gun 12 | . 14 9 Naked Turns . | . . . Heaviest Build 18 | 11 15 18 Greatest Support 42 | 20 32 42 Greatest Overweight (x) 1 | 1 . . Average Overweight (x) . | . . . Largest Inventory Capacity 8 | 8 8 8 Average Capacity 7 | 7 8 8 Most Carried 8 | 5 8 8 Average Carried 6 | 2 7 6 Final Capacity 8 | 8 8 8 Final Carried 8 | 4 8 3 Class Distribution -------------------- 100% | Mutant Dominant Class ---------------- Mutant | -10/Materials Mutant | -9/Materials Resources | -11 -10 -9 ----------- Run | Yrd Mat Mat Matter Collected 577 | 179 277 121 Remotely . | . . . Salvage Created 642 | . 336 306 Parts 32 | . 17 15 Haulers Intercepted 2 | . . 2 Recyclers Shooed . | . . . Parts Field Recycled . | . . . Retrieved Matter . | . . . Parts Self-Destructed . | . . . Prevented . | . . . Kills | -11 -10 -9 ------- Run | Yrd Mat Mat Combat Hostiles Destroyed 21 | . 10 11 Guns 14 | . 9 5 AOE 7 | . 1 6 Classes Destroyed 6 | . 3 3 Worker 1 | . 1 . Hauler 2 | . . 2 Watcher 2 | . . 2 Swarmer 14 | . 6 8 Grunt 6 | . 4 2 Duelist 1 | . . 1 Best Kill Streak 7 | . 3 7 Combat Bots Only 7 | . 3 7 Max Kills in Single Turn 2 | . 1 2 Gunslinging . | . . . Exploded 2 | . 1 2 Melee . | . . . Uniques/NPCs Destroyed . | . . . Combat | -11 -10 -9 -------- Run | Yrd Mat Mat Hostile Shots Fired 134 | . 72 62 Missed 28 | . 15 13 Damage Taken 1162 | . 680 482 Core 246 | . 155 91 Absorbed by Shields . | . . . Core Remaining (%) 69 | 100 38 . Volleys Fired 55 | . 34 21 Largest 2 | . 2 2 Hottest 86 | . 70 86 Shots Fired 107 | . 67 40 Gun 103 | . 67 36 Cannon . | . . . Launcher 4 | . . 4 Special . | . . . Kinetic 49 | . 34 15 Thermal 50 | . 29 21 Explosive 4 | . . 4 Electromagnetic 4 | . 4 . Robot Hit Streak 7 | . 7 4 Robot Miss Streak 5 | . 5 3 Penetration Max . | . . . Secondary Targets 3 | . 3 . Max Gunslinging Chain 1 | . 1 . Shots Hit Robots 59 | . 40 19 Core Hits 40 | . 18 22 Critical Kills 1 | . . 1 Critical Parts Destroyed . | . . . Critical Strikes 2 | . . 2 Burn 1 | . . 1 Destroy 1 | . . 1 Melee Attacks . | . . . Impact . | . . . Slashing . | . . . Piercing . | . . . Sneak Attacks . | . . . Combat Hostiles . | . . . Follow-up Attacks . | . . . Damage Inflicted 1243 | . 569 674 Guns 720 | . 444 276 Cannons . | . . . Explosions 520 | . 125 395 Melee . | . . . Ramming 3 | . . 3 Kinetic 317 | . 214 103 Thermal 489 | . 316 173 Explosive 395 | . . 395 Electromagnetic 39 | . 39 . Impact . | . . . Slashing . | . . . Piercing . | . . . Highest Corruption . | . . . Average Corruption . | . . . Corruption Purged . | . . . Corruption Blocked . | . . . Overload Shots . | . . . Overflow Damage 11 | . . 11 Projectiles . | . . . Explosions 11 | . . 11 Melee . | . . . Knockbacks . | . . . Impact . | . . . Kinetic . | . . . Secondary . | . . . Self-Inflicted Damage 144 | . 62 82 Shots 5 | . 2 3 Rammed 1 | . . 1 Targets Rammed 1 | . . 1 Kicked . | . . . Crushed . | . . . Highest Temperature 408 | . 408 94 Average Temperature 92 | . 122 30 Received Heat Transfer 252 | . 234 18 Effects 2 | . 2 . Interference 2 | . 2 . Siege Activations . | . . . Robots Corrupted . | . . . Combat Hostiles . | . . . Parts Fried . | . . . Impact Corruptions . | . . . Robots Melted . | . . . Combat Hostiles . | . . . Parts Melted 3 | . 2 1 Heat Transferred 1186 | . 705 481 Parts Sabotaged . | . . . Parts Stolen . | . . . Parts Stripped . | . . . Power Chain Reactions 2 | . 2 . Alert | -11 -10 -9 ------- Run | Yrd Mat Mat Peak Influence 398 | . 225 398 Initial 31 | . . 31 Average 99 | . 104 110 Maximum Alert Level 1 | . 1 1 Low Security (%) 86 | 100 83 87 Level 1 13 | . 16 12 Level 2 . | . . . Level 3 . | . . . Level 4 . | . . . Level 5 . | . . . High Security . | . . . Max Security . | . . . Squads Dispatched 2 | . 1 1 Investigation . | . . . Extermination . | . . . Reinforcement 2 | . 1 1 Assault . | . . . Garrison . | . . . Intercept . | . . . Searches Triggered . | . . . Construction Impeded . | . . . Haulers Reinforced . | . . . Active Scanning Responses . | . . . Cargo Convoy Interrupts . | . . . Stealth | -11 -10 -9 --------- Run | Yrd Mat Mat Distress Signals 2 | . 2 . Communications Jammed . | . . . Distress Signals . | . . . Times Spotted 39 | . 22 17 Peak Tracking Total 6 | . 4 6 Tactical Retreats 4 | . 4 . Traps | -11 -10 -9 ------- Run | Yrd Mat Mat Traps Triggered . | . . . Indirectly . | . . . Trap Hack Attempts . | . . . Triggered . | . . . Disarmed . | . . . Reprogrammed . | . . . Reused . | . . . Traps Extracted . | . . . Installed . | . . . Triggered . | . . . Machines | -11 -10 -9 ---------- Run | Yrd Mat Mat Machines Disabled 4 | . . 4 Max in Single Turn 2 | . . 2 Machines Repaired . | . . . Machines Dismantled . | . . . Machines Sabotaged . | . . . Overloaded Fab Kills . | . . . Hacking | -11 -10 -9 --------- Run | Yrd Mat Mat Machines Accessed 6 | . 4 2 Terminals 4 | . 3 1 Fabricators . | . . . Repair Stations . | . . . Recycling Units 2 | . 1 1 Scanalyzers . | . . . Garrison Access . | . . . Total Hacks 13 | . 8 5 Successful 8 | . 4 4 Failed 5 | . 4 1 Catastrophic 1 | . 1 . Database Lockouts . | . . . Manual . | . . . Terminals 10 | . 7 3 Fabricators . | . . . Repair Stations . | . . . Recycling Units 3 | . 1 2 Scanalyzers . | . . . Garrison Access . | . . . Terminal Hacks 6 | . 4 2 Prototype ID Bank 1 | . 1 . Emergency Access Points 1 | . . 1 Locate Traps 2 | . 2 . Hauler Manifests 1 | . 1 . Zone Layout 1 | . . 1 Fabricator Hacks . | . . . Repair Station Hacks . | . . . Recycling Unit Hacks 2 | . . 2 Report Inventory 1 | . . 1 Retrieve Components 1 | . . 1 Scanalyzer . | . . . Garrison Access Hacks . | . . . Unauthorized Hacks . | . . . Terminals . | . . . Fabricators . | . . . Repair Stations . | . . . Recycling Units . | . . . Scanalyzers . | . . . Garrison Access . | . . . Data Cores Recovered . | . . . Used . | . . . Hacking Detections 5 | . 4 1 Full Trace Events . | . . . Feedback Events . | . . . Feedback Blocked . | . . . Robot Schematics Acquired . | . . . Robots Built . | . . . Authchips . | . . . Time . | . . . Total Robot Build Rating . | . . . Part Schematics Acquired . | . . . Parts Built . | . . . Authchips . | . . . Time . | . . . Total Part Build Rating . | . . . Parts Repaired . | . . . Time . | . . . Parts Recycled . | . . . Recycled Matter . | . . . Retrieved Matter . | . . . Retrieved Components 3 | . . 3 Parts Scanalyzed . | . . . Part Schematics Acquired . | . . . Parts Damaged . | . . . Bothacking | -11 -10 -9 ------------ Run | Yrd Mat Mat Used RIF Installer . | . . . Robots Hacked . | . . . Non-combat . | . . . Combat . | . . . Robot Hacks Applied . | . . . Relay Couplers Released . | . . . Fabnet Peak Effective % . | . . . Robots Rewired . | . . . Allies Hacked . | . . . Hacks Repelled . | . . . Allies | -11 -10 -9 -------- Run | Yrd Mat Mat Total Allies . | . . . Largest Group . | . . . Highest-Rated Group . | . . . Highest-Rated Ally . | . . . Total Orders . | . . . Ally Attacks . | . . . Total Damage . | . . . Kills . | . . . Allies Corrupted . | . . . Allies Melted . | . . . Intel | -11 -10 -9 ------- Run | Yrd Mat Mat Robot Analysis Total . | . . . Derelict Logs Recovered . | . . . Drone Launches . | . . . Drone Recoveries . | . . . Exploration | -11 -10 -9 ------------- Run | Yrd Mat Mat Turns Passed 809 | 58 478 273 Spaces Moved 522 | 35 335 152 Core 7 | 7 . . Treads . | . . . Legs 11 | 11 . . Wheels 504 | 17 335 152 Hover . | . . . Flight . | . . . Fastest Speed 50 | 50 80 86 Average Speed 89 | 108 88 87 Slowest Speed 190 | 190 100 100 Overloaded Moves . | . . . Propulsion Burnouts . | . . . Robots Hopped . | . . . Cave-ins Triggered . | . . . Exploration Rate (%) 29 | 3 64 20 Regions Visited 2 Branch Regions . Pre-discovered Areas . | . . . Known Exits Taken . | . . . Unknown Exits Taken 2 | 1 1 . Scrap Searched . | . . . Spaces Dug . | . . . Terrain Destroyed 76 | . 5 71 Melee . | . . . Projectile . | . . . AOE 76 | . 5 71 Terrain Rammed . | . . . Walls Destroyed . | . . . Machines Disabled . | . . . Actions | -11 -10 -9 --------- Run | Yrd Mat Mat Total 753 | 53 449 251 Wait 100 | . 46 54 Move 520 | 34 334 152 Hop . | . . . Pick Up 31 | 10 15 6 Fast Attach . | . . . Attach 20 | 6 6 8 Detach . | . . . Swap 18 | 3 9 6 Drop 8 | . 5 3 Fire 55 | . 34 21 Melee . | . . . Ram 1 | . . 1 Kick . | . . . Crush . | . . . Escape Stasis . | . . . Rewire . | . . . Trap . | . . . Miscellaneous . | . . . Route ------- -11/Scrapyard -10/Materials -9/Materials History --------- Turn | Location | Event 15 | -11/Scrapyard | Discovered new exit (range 15) 59 | -11/Scrapyard | Entered Materials 260 | -10/Materials | Lost 5 parts (1p2n1u1w) 305 | -10/Materials | Build established: Mutant 413 | -10/Materials | Core integrity fell below 50% 510 | -10/Materials | Discovered new exit (range 9) 537 | -10/Materials | Entered another Materials area 537 | -9/Materials | Evolved 2 slots: Propulsion x1, Utility x1 769 | -9/Materials | Lost 4 parts (1p1n1u1w) 810 | -9/Materials | Self-destructed Last Messages --------------- 00786_ The unstable cave ceiling collapses. 00787_ L-31 Rogue destroyed. 00791_ G-34 Mercenary destroyed. 00791_ Electrolysis Chamber disabled. 00791_ U-05 Engineer builds a Wall. 00791_ Lgt. Ion Engine destroyed. 00792_ S-10 Pest destroyed. 00800_ Acquired Imp. Aluminum Leg. 00800_ U-05 Engineer builds a Wall. 00803_ R-06 Scavenger collects Aluminum Leg. 00803_ Lgt. Assault Rifle destroyed. 00804_ U-05 Engineer lays Concrete. 00805_ The unstable cave ceiling collapses. 00805_ U-05 Engineer lays Concrete. 00805_ Wheel destroyed. 00807_ R-06 Scavenger collects Imp. Aluminum Leg. 00807_ U-05 Engineer builds a Wall. 00809_ Com. Wheel destroyed. 00810_ The unstable cave ceiling collapses. Map ----- +----------------------------------------------------+ | ??????????????????????????????????????????????? | | ??????????????????????????????????????????????? | | ??????????????????????????????????????????????? | | ??????????????????????????????????????????????? | | ??????????????????????????????????????????????? | | ??????????????????????????????????????????????? | | ??????????????????????????????????????????????? | | ??????????????????????????????????????????????? | | ??????????????????????????????????????????????? | | ??????????????????????????????????????????????? | | ??????????????????????????????????????????????? | | ??????????????????????????????????????????????? | | ?????????????????????????????????????????????## | | ????????????????????????????????????????????? | | ????????????????###?????###?????????######???# | | ????????????????# ????? #??# !???? #???# | | ????????????????# ??? #??# ![ """^ #???# | | ????????????????# ??? #??# ![ """ ???# | | ????????????????# ??? #??# """ #???# | | ????????????????# ??? #??? """ #???# | | ????????????????# ? #????? "" #???# | | ????????????????# ? #??????? #???# | | ??????? #????? ? ????????## +######## | | ?????? # [ #############??????# | | ????????"" #u%* [% ########## | | ????????"" # *%% @% r uu r | | ???????"" [ ## ######### ###### | | ?????? #????#### ## | | ???????##### ## [ #???????# ## " | | ??????????# ???# #???????# "" ## " | | ????????????????# #???????# T" ## " | | ??????????????? #???????# "" ## | | ????????????? ## #???????# ## " | | ???????????? ??### "s #???????######### " | | ???????????# ?????##s""" #???????????????# " | | ??????????? ???????# ss #???????????????# | | ???????????????????##+##/####???????????????### | | ???????????????????? ?? ????????????????????? | | ???????????????????? ?? ????????????????????? | | ????????????????????????##????????????????????? | | ??????????????????????????????????????????????? | | ??????????????????????????????????????????????? | | ??????????????????????????????????????????????? | | ??????????????????????????????????????????????? | | ??????????????????????????????????????????????? | | ??????????????????????????????????????????????? | | ??????????????????????????????????????????????? | | ??????????????????????????????????????????????? | | ??????????????????????????????????????????????? | | ??????????????????????????????????????????????? | +----------------------------------------------------+ Best States ------------- Heat Dissipation 28 Energy Generation 10 Energy Capacity 125 Matter Stores 300 Matter Capacity 300 Sight Range 16 Terrain Scan Density 10 ECM Strength 1 Armor Coverage 150 Evasion (%) 50 Targeting Accuracy 5 Item Schematics ----------------- None Robot Schematics ------------------ None Fabricated ------------ Nothing Alien Tech Used ----------------- None Achievements -------------- None Challenges ------------ None Game ------ Seed CompositeImprovedClaw Manual? 0 Play Time 00:20:16 Cumulative 14.3 hours Start 2024.04.19 @ 07:36:26 End 2024.04.19 @ 07:56:26 Sessions 1 Manual Loads 0 Difficulty Rogue Special Mode None Game No. 11 Rogue 10 Adventurer 1 Explorer 0 Win Type - Total 0 Types 0/0/0/0/0/0/0/0/0 Lore% 12 Gallery% 23 Achievement% 19 Wizard Run 0 Options --------- Layout 1 ASCII 0 Keyboard 0 Movement Mouse Keybinds 0 Fullscreen 2 Font 24/Proggy Map View 50x35 Zoom Use 0% Tactical HUD 1 Map Filters NONE Filters NONE Steam 1 RUN: f7c782dc-4bbf-4903-bb4d-fe03596d1e35